bitfinex-derivatives/quotes_SOLF0:USTF0_20250307
["timestamp","ask_amount","ask_price","bid_price","bid_amount"]
[1741359642372,3.7953,146.42,146.3,45.40520332]
[1741359642570,42.22,146.42,146.3,45.40520332]
[1741359642771,0.04515283,146.37,146.35,0.04471392]
[1741359642968,42.22,146.42,146.35,0.04471392]
[1741359643173,0.04463409,146.37,146.35,0.04471392]
[1741359643378,3.7294,146.44,146.35,45.44991724]
[1741359643680,42.3,146.46,146.35,45.40520332]
[1741359643878,42.3,146.46,146.35,58.70520332]
[1741359644272,42.3,146.46,146.38,45.40520332]
[1741359644582,4.0296,146.49,146.41,45.40520332]
[1741359644881,0.04495748,146.43,146.41,0.0502651]
[1741359645078,4.0296,146.49,146.41,0.0502651]
[1741359645576,0.04933299,146.46,146.41,6.8790651]
[1741359645774,0.04933299,146.46,146.41,3.8302651]
[1741359646381,42.30933299,146.46,146.41,3.8302651]
[1741359646684,0.04933299,146.46,146.41,3.8302651]
[1741359647184,6.8282,146.44,146.41,3.8302651]
[1741359647372,0.04933299,146.46,146.41,3.8302651]
[1741359647675,42.3,146.45,146.41,3.8302651]
[1741359647875,45.40520332,146.42,146.35,13.3]
[1741359648078,6.8328,146.34,146.28,6.835]
[1741359648275,45.40520332,146.33,146.24,11.6105]
[1741359648779,49.36000332,146.36,146.24,11.6105]
[1741359648980,0.04422179,146.3,146.27,0.04943666]
[1741359649371,3.9548,146.36,146.26,45.40520332]
[1741359649572,0.05086428,146.3,146.27,0.04445311]
[1741359649774,91.58000332,146.42,146.29,45.40520332]
[1741359649976,46.1748,146.42,146.32,45.40520332]
[1741359650176,42.22,146.42,146.33,3.9227]
[1741359650778,42.16,146.46,146.33,7.9554]
[1741359650979,0.04676284,146.39,146.36,0.04659692]
[1741359651479,0.05028703,146.39,146.36,0.04485313]
[1741359654185,0.05028703,146.39,146.38,6.8307]
[1741359654585,10.5475,146.48,146.43,6.8283]
[1741359654784,10.5475,146.48,146.37,45.40520332]
[1741359654977,10.5475,146.48,146.38,45.9616]
[1741359655177,3.7214,146.48,146.38,45.9616]
[1741359655780,0.04759059,146.44,146.42,0.04985708]
[1741359656678,0.04759059,146.44,146.35,9.3464]
[1741359656679,41.92759059,146.44,146.35,1.62]
[1741359656888,87.33279391,146.44,146.35,1.62]
[1741359657089,87.28520332,146.44,146.35,1.62]
[1741359657588,87.28520332,146.44,146.27,209.058]
[1741359657589,45.40520332,146.38,146.23,45.40520332]
[1741359657784,45.40520332,146.35,146.24,11.9176]
[1741359658089,45.40520332,146.35,146.28,0.04589837]
[1741359658478,0.05144702,146.33,146.28,0.04589837]
[1741359658683,87.20520332,146.32,146.23,10.94]
[1741359658990,6.835,146.29,146.23,10.94]
[1741359659392,87.20520332,146.32,146.23,10.94]
[1741359659890,0.04565513,146.29,146.26,0.0464458]
[1741359660391,45.40520332,146.39,146.26,45.45164912]
[1741359660582,194.0,146.43,146.29,45.40520332]
[1741359660583,41.64,146.42,146.29,45.40520332]
[1741359660778,41.64,146.42,146.3,7.5195]
[1741359661484,41.64,146.42,146.32,45.40520332]
[1741359661687,1.263e-05,146.37,146.36,6.8316]
[1741359661992,74.34481661,146.44,146.36,132.51040664]
[1741359662182,62.00321661,146.44,146.43,6.8283]
[1741359662385,111.88700597,146.45,146.42,41.68]
[1741359662386,73.13744203,146.45,146.42,41.68]
[1741359662585,28.81524203,146.45,146.44,45.40520332]
[1741359662792,2.63284203,146.45,146.44,55.65310332]
[1741359663087,4.203e-05,146.45,146.44,55.65310332]
[1741359663293,4.968e-05,146.46,146.45,6.8274]
[1741359663682,170.11539851,146.47,146.46,6.8269]
[1741359664081,170.11539851,146.47,146.43,0.05239498]
[1741359664287,41.62,146.5,146.43,0.05239498]
[1741359664689,45.40520332,146.45,146.29,41.64]
[1741359664887,6.8288,146.42,146.34,6.8324]
[1741359665187,7.9119,146.44,146.36,0.04636302]
[1741359665386,0.04393837,146.39,146.36,0.04636302]
[1741359665586,0.04393837,146.39,146.36,45.45156634]
[1741359665788,0.04393837,146.39,146.36,0.04636302]
[1741359668894,0.04393837,146.39,146.31,36.2714234]
[1741359669093,45.40520332,146.35,146.31,30.1050234]
[1741359669289,7.7394,146.34,146.31,23.9393234]
[1741359669498,41.74,146.39,146.32,6.8335]
[1741359669695,45.6222,146.39,146.31,23.9393234]
[1741359669887,3.8822,146.39,146.31,23.9393234]
[1741359670093,0.05107628,146.36,146.35,6.8321]
[1741359670395,3.8572,146.43,146.34,87.14520332]
[1741359670597,0.04447199,146.37,146.36,6.8312]
[1741359670900,3.8572,146.43,146.34,87.14520332]
[1741359671295,3.8572,146.43,146.31,23.9393234]
[1741359671498,3.8572,146.43,146.3,45.40520332]
[1741359671799,3.8572,146.43,146.31,41.78]
[1741359671991,0.04537759,146.38,146.35,0.04567275]
[1741359673194,7.759e-05,146.38,146.36,45.40520332]
[1741359673393,7.759e-05,146.38,146.37,52.23630332]
[1741359673594,7.9899,146.51,146.37,49.18360332]
[1741359673794,4.0914,146.51,146.45,45.40520332]
[1741359674002,72.09412835,146.53,146.45,45.40520332]
[1741359674003,260.79397729,146.53,146.45,45.40520332]
[1741359674698,0.052699,146.5,146.48,0.05195561]
[1741359674899,9.9e-05,146.5,146.48,45.45715893]
[1741359675198,212.45667629,146.53,146.48,45.45715893]
[1741359675498,171.66967629,146.53,146.52,45.40520332]
[1741359676306,0.04606805,146.54,146.52,45.40520332]
[1741359676505,0.04606805,146.54,146.51,0.04444234]
[1741359677008,41.78,146.53,146.46,33.57]
[1741359677199,3.7893,146.53,146.48,6.8256]
[1741359677404,3.7893,146.53,146.46,33.57]
[1741359677701,194.0,146.61,146.48,45.40520332]
[1741359677702,41.82,146.57,146.48,45.40520332]
[1741359677894,3.9887,146.62,146.51,45.40520332]
[1741359678098,3.8128,146.61,146.51,45.40520332]
[1741359678299,0.0442383,146.58,146.55,0.05164092]
[1741359680505,0.0442383,146.58,146.56,6.8219]
[1741359680799,0.0442383,146.58,146.55,0.05164092]
[1741359681200,0.0442383,146.58,146.56,45.40520332]
[1741359681708,3.83e-05,146.58,146.57,6.8218]
[1741359681916,3.83e-05,146.58,146.56,45.40520332]
[1741359682813,3.83e-05,146.58,146.57,6.8218]
[1741359683215,3.83e-05,146.58,146.57,10.2418]
[1741359683603,3.83e-05,146.58,146.56,52.22740332]
[1741359683907,3.83e-05,146.58,146.56,48.82520332]
[1741359684106,3.83e-05,146.58,146.57,52.22700332]
[1741359684298,3.83e-05,146.58,146.57,6.8218]
[1741359684908,3.83e-05,146.58,146.57,10.2418]
[1741359685111,3.83e-05,146.58,146.57,6.8218]
[1741359685511,3.83e-05,146.58,146.57,55.64700332]
[1741359685706,4.0925,146.71,146.57,48.82520332]
[1741359685904,4.0925,146.71,146.64,45.40520332]
[1741359686613,3.9375,146.73,146.64,45.40520332]
[1741359686815,0.05026202,146.69,146.66,0.04706303]
[1741359687710,0.05026202,146.69,146.67,45.40520332]
[1741359688104,6.202e-05,146.69,146.68,6.8167]
[1741359688309,6.202e-05,146.69,146.66,0.04706303]
[1741359688713,6.202e-05,146.69,146.68,52.22190332]
[1741359689216,6.202e-05,146.69,146.68,55.62190332]
[1741359689422,7.6363,146.85,146.68,48.80520332]
[1741359689610,4.012,146.84,146.74,45.40520332]
[1741359689912,4.012,146.84,146.69,86.70520332]
[1741359690118,45.40520332,146.81,146.69,86.70520332]
[1741359690313,4.012,146.84,146.69,86.70520332]
[1741359690518,0.04811883,146.76,146.74,0.04855492]
[1741359690721,41.48,146.82,146.74,0.04855492]
[1741359690926,0.05072159,146.76,146.74,0.05016419]
[1741359691126,41.48,146.82,146.74,0.05016419]
[1741359691622,0.0503052,146.79,146.74,0.05016419]
[1741359692224,0.0503052,146.79,146.75,45.40520332]
[1741359692527,0.0503052,146.79,146.74,0.05016419]
[1741359693133,0.0503052,146.79,146.74,41.49016419]
[1741359693519,0.0503052,146.79,146.75,45.40520332]
[1741359693727,0.0503052,146.79,146.74,41.49016419]
[1741359694123,45.40520332,146.93,146.78,45.40520332]
[1741359694336,194.0,146.99,146.88,45.40520332]
[1741359694527,4.0914,146.99,146.91,45.40520332]
[1741359694829,4.0163,147.0,146.92,41.74]
[1741359695329,4.0914,147.03,146.91,88.26520332]
[1741359695533,0.05129362,146.97,146.95,0.05029776]
[1741359696032,6.8036,146.97,146.88,52.21240332]
[1741359696331,3.7665,146.96,146.86,42.8]
[1741359696532,10.5703,146.96,146.88,6.8074]
[1741359696722,3.7665,146.96,146.86,42.8]
[1741359697128,0.05193351,146.92,146.9,0.04518969]
[1741359697430,0.05193351,146.92,146.83,45.40520332]
[1741359697618,0.05193351,146.92,146.82,42.88]
[1741359697825,88.20520332,146.94,146.82,42.88]
[1741359698031,3.9489,146.93,146.82,42.88]
[1741359698318,6.8064,146.91,146.83,6.8097]
[1741359698524,4.248e-05,146.89,146.87,45.40520332]
[1741359698724,3.7543,147.0,146.88,42.86]
[1741359698922,3.7543,147.0,146.92,45.40520332]
[1741359699333,42.86,147.05,146.98,6.8027]
[1741359699532,7.8286,147.06,146.98,45.40520332]
[1741359700235,0.04373302,147.03,147.01,45.45723058]
[1741359700532,3.7543,147.1,147.0,45.40520332]
[1741359700736,0.05031331,147.03,147.01,0.04530129]
[1741359700926,3.7543,147.1,147.01,0.04530129]
[1741359701131,0.04425996,147.03,146.99,42.94]
[1741359701332,3.7543,147.1,147.04,0.0489389]
[1741359701528,6.7977,147.09,147.02,6.8005]
[1741359701733,0.04531051,147.08,147.06,0.045973]
[1741359701934,0.04531051,147.08,147.03,45.40520332]
[1741359702133,0.04531051,147.08,147.06,0.04343134]
[1741359702327,0.04531051,147.08,147.06,45.44863466]
[1741359702529,0.04531051,147.08,147.06,52.24763466]
[1741359702833,0.04531051,147.08,147.06,45.44863466]
[1741359703038,7.8507,147.16,147.07,45.40520332]
[1741359703236,7.8507,147.16,147.1,45.40520332]
[1741359704039,57.21010332,147.24,147.1,45.40520332]
[1741359704235,0.04468791,147.14,147.13,45.40520332]
[1741359704435,0.04468791,147.14,147.13,52.20100332]
[1741359704739,11.8049,147.24,147.13,45.40520332]
[1741359704938,0.05176002,147.15,147.13,45.40520332]
[1741359705132,46.64254041,147.23,147.11,42.74]
[1741359705332,0.05003942,147.15,147.13,6.84530247]
[1741359705533,0.05003942,147.15,147.13,0.04950247]
[1741359705742,0.05003942,147.15,147.09,45.40520332]
[1741359706035,0.05003942,147.15,147.13,0.05114281]
[1741359706837,0.05003942,147.15,147.07,90.18520332]
[1741359707045,0.05003942,147.15,147.07,1.92]
[1741359707233,42.91003942,147.15,147.07,1.92]
[1741359707435,49.45060332,147.14,147.03,10.89]
[1741359707632,1.23814883,147.13,147.03,56.29520332]
[1741359707828,4.0454,147.14,147.07,0.04892627]
[1741359708035,6.7982,147.08,147.07,0.04892627]
[1741359708236,49.45060332,147.14,147.03,10.89]
[1741359709139,4.0454,147.14,147.05,45.40520332]
[1741359709347,0.0473232,147.1,147.09,45.40520332]
[1741359709540,4.0454,147.14,147.09,45.40520332]
[1741359709738,0.05125884,147.11,147.09,45.40520332]
[1741359710238,0.05125884,147.11,147.08,0.04581264]
[1741359711641,0.05125884,147.11,147.03,10.89]
[1741359711841,6.799,147.07,147.03,10.89]
[1741359712040,3.8029,147.1,147.03,10.89]
[1741359712436,45.40520332,147.08,146.97,6.8031]
[1741359712742,0.0498064,147.04,147.01,0.04430312]
[1741359713044,3.8178,147.07,146.99,45.40520332]
[1741359713231,0.04327407,147.04,147.01,0.0449529]
[1741359713436,0.04327407,147.04,147.03,6.8005]
[1741359713837,7.407e-05,147.04,147.03,6.8005]
[1741359714437,7.407e-05,147.04,147.03,10.7762]
[1741359716241,7.407e-05,147.04,147.01,0.0449529]
[1741359717948,7.407e-05,147.04,147.03,52.20570332]
[1741359718141,7.407e-05,147.04,147.03,6.8005]
[1741359718443,7.407e-05,147.04,147.01,0.0449529]
[1741359718937,6.8009,147.02,147.01,0.0449529]
[1741359719144,7.8138,147.03,146.95,42.82]
[1741359719344,7.8138,147.03,146.93,45.40520332]
[1741359720043,14.6144,147.03,146.99,6.8019]
[1741359720234,6.338e-05,146.99,146.97,0.04779597]
[1741359720443,3.7646,147.09,146.98,45.40520332]
[1741359720747,3.7646,147.09,147.01,45.40520332]
[1741359720943,3.7646,147.09,146.98,45.40520332]
[1741359721340,3.7646,147.09,147.01,45.40520332]
[1741359721536,0.04523543,147.05,147.02,0.04997368]
[1741359721943,0.04523543,147.05,147.04,45.40520332]
[1741359722144,0.04523543,147.05,147.02,0.04997368]
[1741359723554,43.08523543,147.05,147.02,0.04997368]
[1741359723852,43.08523543,147.05,146.93,88.44520332]
[1741359723853,4.0095,147.04,146.93,88.44520332]
[1741359724256,4.0095,147.04,146.99,45.40520332]
[1741359724446,4.0095,147.04,146.93,88.44520332]
[1741359724648,6.8018,147.01,146.96,6.8036]
[1741359724952,0.0522438,147.0,146.97,0.04761668]
[1741359725650,4.38e-05,147.0,146.98,45.40520332]
[1741359725953,4.38e-05,147.0,146.99,6.8023]
[1741359726341,3.7238,147.09,146.98,92.52320332]
[1741359726546,3.7238,147.09,147.02,45.40520332]
[1741359727038,3.9799,147.11,147.02,45.40520332]
[1741359727449,3.9799,147.11,147.07,6.7984]
[1741359727648,0.04296083,147.08,147.05,0.04832314]
[1741359727850,6.84116083,147.08,147.05,0.04832314]
[1741359728050,0.04296083,147.08,147.05,0.04832314]
[1741359728954,0.04296083,147.08,147.07,6.7986]
[1741359729454,6.7944,147.17,147.08,45.40520332]
[1741359729652,11.7609,147.19,147.11,45.40520332]
[1741359729848,398.02,147.26,147.14,45.40520332]
[1741359730050,56.15814772,147.25,147.14,45.40520332]
[1741359730350,45.40520332,147.21,147.08,4.0278]
[1741359730555,45.40520332,147.18,147.06,4.0154]
[1741359730750,45.40520332,147.15,147.13,7.265e-05]
[1741359730946,53.8849,147.14,147.01,3.7523]
[1741359731146,45.40520332,147.12,147.0,88.52520332]
[1741359731351,45.40520332,147.09,146.99,4.0154]
[1741359731550,7.7914,147.08,146.98,43.2]
[1741359732050,6.8005,147.03,147.02,0.0446121]
[1741359732245,6.8005,147.03,147.02,1.21e-05]
[1741359732451,7.3256,147.03,146.98,43.2]
[1741359732657,43.04294348,147.04,146.98,43.2]
[1741359733255,6.8023,146.99,146.98,43.2]
[1741359733557,88.36520332,146.99,146.93,9.05999394]
[1741359733748,6.8028,146.98,146.97,3.419e-05]
[1741359734161,10.2028,146.98,146.97,3.419e-05]
[1741359734660,0.04904893,147.0,146.97,3.419e-05]
[1741359734850,45.40520332,146.99,146.97,3.419e-05]
[1741359735256,48.80520332,146.99,146.97,3.419e-05]
[1741359735454,6.8028,146.98,146.97,3.419e-05]
[1741359735664,6.8028,146.98,146.92,22.290792]
[1741359735665,194.0,146.98,146.92,5.44852013]
[1741359735951,45.40520332,146.94,146.9,148.34368985]
[1741359736152,52.21120332,146.91,146.9,117.55368985]
[1741359736352,95.05120332,146.91,146.9,77.01998985]
[1741359736560,98.45120332,146.91,146.9,70.21998985]
[1741359736749,53.046,146.91,146.9,70.21998985]
[1741359736949,53.046,146.91,146.9,6.28917667]
[1741359737150,194.0,146.9,146.73,45.40520332]
[1741359737346,45.40520332,146.84,146.8,9.08605177]
[1741359737549,6.8102,146.82,146.8,9.08605177]
[1741359737759,42.82,146.83,146.8,9.08605177]
[1741359737958,45.40520332,146.81,146.8,9.08605177]
[1741359738151,52.21590332,146.81,146.8,9.08605177]
[1741359738960,52.21590332,146.81,146.79,4.397e-05]
[1741359738961,6.8111,146.8,146.79,4.397e-05]
[1741359739154,8.05201077,146.8,146.79,4.397e-05]
[1741359739466,208.84091077,146.8,146.79,4.397e-05]
[1741359739657,204.2,146.8,146.79,4.397e-05]
[1741359740255,265.11579068,146.81,146.79,4.397e-05]
[1741359740452,191.70414777,146.8,146.79,4.397e-05]
[1741359741053,191.70414777,146.8,146.79,6.81164397]
[1741359741251,191.70414777,146.8,146.79,4.397e-05]
[1741359741656,265.11579068,146.8,146.76,5.89171376]
[1741359742052,235.68189068,146.8,146.76,5.89171376]
[1741359742257,65.063391,146.8,146.79,52.21680332]
[1741359742565,1.1854678,146.96,146.79,133.39040664]
[1741359742862,87.96520332,146.98,146.84,45.40520332]
[1741359743362,45.40520332,146.95,146.84,45.40520332]
[1741359743762,0.0491656,146.91,146.88,0.04639704]
[1741359743958,42.5691656,146.91,146.81,45.40520332]
[1741359744158,42.5691656,146.91,146.78,45.40520332]
[1741359744358,42.52,146.91,146.79,6.8115]
[1741359744557,42.52,146.91,146.78,45.40520332]
[1741359744558,43.70534666,146.91,146.78,45.40520332]
[1741359744759,42.52,146.91,146.81,6.8106]
[1741359744962,42.52,146.91,146.79,199.46389541]
[1741359745358,0.04458092,146.87,146.85,0.04999274]
[1741359745759,0.00678092,146.87,146.85,0.04999274]
[1741359745954,0.00678092,146.87,146.86,6.8083]
[1741359746154,0.00678092,146.87,146.86,10.2083]
[1741359746659,0.00678092,146.87,146.86,61.36064327]
[1741359746864,0.00678092,146.87,146.86,57.96064327]
[1741359747065,0.00678092,146.87,146.86,8.67234327]
[1741359748058,42.44,146.95,146.86,84.67676691]
[1741359748468,42.36,146.94,146.86,84.67676691]
[1741359749067,42.36,146.94,146.86,72.34756691]
[1741359749068,45.40520332,146.92,146.86,72.34756691]
[1741359749366,45.40520332,146.89,146.86,60.01796691]
[1741359749567,42.34,146.88,146.79,190.79155214]
[1741359749965,49.1474,146.88,146.87,1.073e-05]
[1741359750165,52.5474,146.88,146.87,1.073e-05]
[1741359750365,45.74,146.88,146.86,7.568e-05]
[1741359750672,42.34,146.88,146.82,91.16516803]
[1741359750964,6.8097,146.83,146.82,34.50506803]
[1741359751261,49.0897,146.83,146.82,34.50506803]
[1741359751961,6.8102,146.82,146.81,0.05127265]
[1741359752362,10.2102,146.82,146.81,7.265e-05]
[1741359752664,6.8102,146.82,146.81,7.265e-05]
[1741359752865,10.2102,146.82,146.81,7.265e-05]
[1741359753581,55.61540332,146.82,146.81,7.265e-05]
[1741359753774,6.8102,146.82,146.81,7.265e-05]
[1741359754072,10.2102,146.82,146.81,7.265e-05]
[1741359754771,6.8102,146.82,146.81,7.265e-05]
[1741359754973,10.2102,146.82,146.81,7.265e-05]
[1741359756667,6.8102,146.82,146.81,7.265e-05]
[1741359757164,0.049336,146.84,146.81,7.265e-05]
[1741359757968,45.40520332,146.82,146.81,7.265e-05]
[1741359758362,48.80520332,146.82,146.66,4.1024]
[1741359758562,45.40520332,146.76,146.66,4.1024]
[1741359758871,45.40520332,146.73,146.64,7.5544]
[1741359759569,0.04938227,146.7,146.67,0.04516403]
[1741359759870,41.82,146.69,146.67,0.04516403]
[1741359760774,20.54,146.83,146.67,0.04516403]
[1741359760775,45.40520332,146.81,146.67,45.45036735]
[1741359761074,41.8,146.8,146.73,45.40520332]
[1741359761277,41.8,146.8,146.74,3.8526]
[1741359761465,48.6112,146.8,146.74,3.8526]
[1741359761661,41.8,146.8,146.74,3.8526]
[1741359762063,0.04674789,146.78,146.76,0.05224503]
[1741359762576,41.8,146.8,146.76,0.05224503]
[1741359762765,41.8,146.8,146.79,6.8116]
[1741359762971,41.78,146.84,146.76,45.45744835]
[1741359763473,41.74,146.84,146.76,45.40520332]
[1741359763870,0.05087494,146.81,146.79,6.85990703]
[1741359764080,0.05087494,146.81,146.79,0.04870703]
[1741359764563,0.05087494,146.81,146.79,7.03e-06]
[1741359764768,6.8111,146.8,146.79,7.03e-06]
[1741359765770,10.2111,146.8,146.79,7.03e-06]
[1741359766175,6.8154,146.71,146.67,3.93]
[1741359766477,41.46,146.72,146.67,3.93]
[1741359767176,35.2902,146.72,146.67,3.93]
[1741359767378,0.04862498,146.71,146.68,0.05031683]
[1741359767579,41.4,146.77,146.67,3.93]
[1741359767778,0.04522607,146.71,146.69,6.8158]
[1741359767982,6.814,146.74,146.69,6.8158]
[1741359768179,41.4,146.77,146.68,3.9852]
[1741359768478,6.814,146.74,146.69,6.8162]
[1741359768672,6.814,146.74,146.68,3.9852]
[1741359768972,41.4,146.77,146.68,3.9852]
[1741359769181,41.22,146.82,146.71,45.40520332]
[1741359769482,41.22,146.82,146.73,6.814]
[1741359769667,1.1861345,146.85,146.71,45.40520332]
[1741359769977,41.22,146.85,146.74,45.40520332]
[1741359770277,278.63793741,146.87,146.74,45.40520332]
[1741359770579,0.04750516,146.81,146.8,6.811]
[1741359770773,115.29793741,146.87,146.79,7.9923]
[1741359771179,160.70314073,146.87,146.79,7.9923]
[1741359771680,45.40520332,146.84,146.68,238.40520332]
[1741359771980,45.40520332,146.81,146.75,0.04805715]
[1741359772182,6.813,146.76,146.75,5.715e-05]
[1741359772391,45.40520332,146.78,146.69,7.7193]
[1741359773381,0.04889718,146.75,146.72,0.04284921]
[1741359773579,6.8148,146.73,146.72,0.04284921]
[1741359774179,0.04889718,146.75,146.72,0.04284921]
[1741359774778,235.1,146.82,146.72,0.04284921]
[1741359774979,41.1,146.82,146.72,0.04284921]
[1741359775181,41.1,146.82,146.71,45.40520332]
[1741359775384,18.43739525,146.81,146.71,45.40520332]
[1741359775788,25.24819525,146.81,146.76,6.8128]
[1741359775995,0.05034179,146.77,146.75,0.0442025]
[1741359776286,0.04457238,146.77,146.76,6.8126]
[1741359776491,18.43739525,146.81,146.75,0.0442025]
[1741359776684,74.17793741,146.83,146.77,45.40520332]
[1741359776885,61.83833741,146.83,146.82,6.8102]
[1741359777092,43.33223741,146.83,146.82,6.8102]
[1741359777389,25.09523741,146.83,146.8,45.40520332]
[1741359777589,25.09523741,146.83,146.81,0.04566575]
[1741359777884,25.09523741,146.83,146.77,45.40520332]
[1741359777885,6.8106,146.82,146.77,45.40520332]
[1741359778097,0.04506921,146.83,146.81,0.04532444]
[1741359778389,0.04506921,146.83,146.81,0.04464968]
[1741359779493,0.04506921,146.83,146.81,6.85494968]
[1741359779690,0.04506921,146.83,146.81,0.04464968]
[1741359781893,0.04506921,146.83,146.81,6.85494968]
[1741359782193,0.04506921,146.83,146.81,0.04464968]
[1741359782996,0.04506921,146.83,146.82,6.8102]
[1741359783293,6.921e-05,146.83,146.82,6.8102]
[1741359783483,41.06,146.94,146.82,3.4]
[1741359783685,41.06,146.94,146.85,45.40520332]
[1741359783887,4.1102,146.95,146.85,45.40520332]
[1741359784087,6.8034,146.97,146.93,6.8051]
[1741359784500,111.26690611,147.0,146.91,45.40520332]
[1741359784692,111.26690611,147.0,146.9,41.06]
[1741359784693,111.26690611,147.0,146.94,45.44948707]
[1741359784896,7.01e-06,146.97,146.94,0.04428375]
[1741359785191,7.01e-06,146.97,146.96,6.8037]
[1741359785395,7.01e-06,146.97,146.94,0.04428375]
[1741359786396,41.06000701,146.97,146.94,0.04428375]
[1741359786584,6.8042,146.95,146.94,0.04428375]
[1741359787093,7.01e-06,146.97,146.94,0.04428375]
[1741359788300,6.8042,146.95,146.94,0.04428375]
[1741359788494,6.8042,146.95,146.69,1.18453971]
[1741359788495,249.70520332,146.95,146.75,193.0]
[1741359788700,249.70520332,146.95,146.79,45.40520332]
[1741359788701,6.8096,146.84,146.79,45.40520332]
[1741359788905,41.06,146.88,146.76,45.40520332]
[1741359789397,41.06,146.88,146.75,41.06]
[1741359789903,6.8102,146.82,146.81,0.05039021]
[1741359790201,0.04807114,146.83,146.81,0.05039021]
[1741359790402,6.8102,146.82,146.81,0.05039021]
[1741359790601,41.1084269,146.83,146.72,45.40520332]
[1741359790999,41.06,146.83,146.72,45.40520332]
[1741359791909,0.04811218,146.79,146.76,0.04647914]
[1741359792108,41.06,146.78,146.64,117.2348858]
[1741359792702,41.06,146.78,146.65,6.8181]
[1741359792902,41.06,146.78,146.64,117.2348858]
[1741359793101,45.40520332,146.77,146.58,239.59160066]
[1741359793399,0.04781557,146.73,146.71,0.04924008]
[1741359793603,41.06,146.78,146.67,45.40520332]
[1741359793801,0.05156799,146.73,146.71,0.04965201]
[1741359794101,239.40520332,146.83,146.65,45.40520332]
[1741359794102,41.06,146.81,146.65,45.40520332]
[1741359794305,41.06,146.81,146.71,45.40520332]
[1741359794496,41.06,146.81,146.74,45.40520332]
[1741359794695,41.06,146.81,146.76,6.8129]
[1741359794904,41.06,146.81,146.74,45.40520332]
[1741359795102,0.04377238,146.8,146.77,0.04939643]
[1741359796007,41.10377238,146.8,146.77,0.04939643]
[1741359797007,0.04377238,146.8,146.77,0.04939643]
[1741359798110,0.04377238,146.8,146.77,6.86149643]
[1741359798309,0.04377238,146.8,146.77,0.04939643]
[1741359798614,0.04377238,146.8,146.79,6.8116]
[1741359798999,41.06,146.88,146.77,45.45459975]
[1741359799206,41.06,146.88,146.77,86.46520332]
[1741359799611,41.06,146.88,146.77,148.46520332]
[1741359799804,45.40520332,146.86,146.74,45.40520332]
[1741359800209,0.04377946,146.81,146.79,0.04577327]
[1741359800405,45.40520332,146.86,146.79,0.04577327]
[1741359800904,0.04998358,146.84,146.79,0.04577327]
[1741359801103,86.46520332,146.83,146.71,45.40520332]
[1741359801302,3.8114,146.82,146.71,45.40520332]
[1741359801498,7.8382,146.82,146.71,45.40520332]
[1741359802307,0.04707385,146.78,146.75,6.86484688]
[1741359802611,0.04707385,146.78,146.75,0.05184688]
[1741359803706,41.06,146.88,146.77,45.40520332]
[1741359803905,41.06,146.88,146.78,6.8117]
[1741359803906,6.8097,146.84,146.78,6.8117]
[1741359804108,45.40520332,146.87,146.74,45.40520332]
[1741359804308,45.40520332,146.84,146.71,45.40520332]
[1741359804506,48.6179,146.83,146.71,45.40520332]
[1741359804906,0.05148633,146.78,146.76,0.04307245]
[1741359805211,41.06,146.82,146.76,0.04307245]
[1741359805411,0.04549915,146.78,146.76,0.04307245]
[1741359805714,0.04549915,146.78,146.77,6.8124]
[1741359806212,194.0,146.87,146.77,6.8124]
[1741359806213,194.0,146.94,146.77,45.40520332]
[1741359806407,3.9616,146.89,146.77,45.40520332]
[1741359806715,3.9616,146.89,146.8,45.40520332]
[1741359807411,0.0428355,146.86,146.83,0.04700605]
[1741359809505,0.0428355,146.86,146.83,6.85670605]
[1741359809712,0.0428355,146.86,146.83,0.04700605]
[1741359810110,0.0428355,146.86,146.76,6.8126]
[1741359810316,6.8106,146.82,146.74,45.40520332]
[1741359810513,41.06,146.82,146.74,6.8136]
[1741359810809,6.809,146.85,146.74,45.40520332]
[1741359811002,44.9844,146.86,146.74,45.40520332]
[1741359811202,0.05059631,146.81,146.78,0.04636182]
[1741359811608,0.05059631,146.81,146.71,45.40520332]
[1741359811805,6.8126,146.77,146.71,45.40520332]
[1741359812114,41.04,146.81,146.71,52.22010332]
[1741359812312,41.04,146.81,146.71,45.40520332]
[1741359812712,0.04861069,146.77,146.75,0.04510831]
[1741359813411,6.813,146.76,146.75,0.04510831]
[1741359813615,0.04861069,146.77,146.75,0.04510831]
[1741359814412,3.9244,146.86,146.75,3.44510831]
[1741359814717,41.04,146.89,146.79,45.40520332]
[1741359815017,41.04,146.89,146.79,86.44520332]
[1741359815018,6.8073,146.89,146.79,86.44520332]